fUST/lending_fUST_20240708
["ID","MTS","AMOUNT","RATE_DAILY","PERIOD"]
[331444664,1720418728862,170.023594,0.00021096,2]
[331444665,1720418755164,-154.49787882,0.00029999,2]
[331444666,1720418755185,-874.78866962,0.00034585,2]
[331444667,1720418834087,-2728.85024072,0.00034563,2]
[331444668,1720418845220,-4600.40853538,0.00034563,2]
[331444669,1720418849107,-65.07309399,0.00034563,2]
[331444670,1720418849127,-400.0,0.00034572,2]
[331444671,1720418849148,-400.0,0.00034572,2]
[331444672,1720418849168,-189.58311004,0.00035,4]
[331444673,1720418945091,-389.23430213,0.00035,4]
[331444674,1720418946109,-1092.21683455,0.00037899,21]
[331444675,1720418946134,-742.21421592,0.00038499,4]
[331444676,1720418946157,-167.6285255,0.00039205,2]
[331444677,1720418946180,-155.42805707,0.00039999,4]
[331444678,1720418946203,-155.58300829,0.00039999,4]
[331444679,1720418946227,-286.64122418,0.00039999,2]
[331444680,1720418946250,-53.21905599,0.00039999,4]
[331444681,1720418973138,-103.50206404,0.00039999,4]
[331444682,1720418973158,-400.0,0.00039999,3]
[331444683,1720418973178,-151.0,0.0004,120]
[331444684,1720418973196,-604.0,0.0004,120]
[331444685,1720418973317,-8450.66499439,0.00040278,2]
[331444686,1720418973342,-630.0010319,0.00040386,2]
[331444687,1720418973365,-160.2208101,0.00042235,2]
[331444688,1720418973388,-245.20046817,0.00042398,4]
[331444689,1720418973407,-2629.12063722,0.00042424,4]
[331444690,1720418973428,-473.55680209,0.00042999,4]
[331444691,1720418973447,-382.0,0.00043999,3]
[331444692,1720418973467,-151.0,0.0005,120]
[331444693,1720418973485,-260.0,0.0005,120]
[331444694,1720418973504,-200.0,0.00051781,10]
[331444695,1720418973523,-813.2432863,0.000528,2]
[331444696,1720418973542,-157.59667048,0.00053554,60]
[331444697,1720418975877,4412.44179743,0.00039999,2]
[331444698,1720418997525,-436.46450837,0.00039999,2]
[331444895,1720419038269,-7394.33187009,0.00039393,2]
[331444896,1720419038279,-1776.18494206,0.00042424,4]
[331444897,1720419038289,-166.46498376,0.00048483,4]
[331444898,1720419038299,-178.57479147,0.00057424,28]
[331444899,1720419038309,-1162.6366384,0.00057434,2]
[331444900,1720419038319,-19900.4180206,0.00057524,7]
[331444901,1720419038329,-23467.74,0.00057524,3]
[331444902,1720419038338,-315.53229034,0.00057533,120]
[331444903,1720419038348,-224.42104263,0.00057533,7]
[331444904,1720419038357,-500.0,0.00057534,2]
[331444905,1720419038367,-500.0,0.00057534,120]
[331444906,1720419038376,-500.0,0.00057534,120]
[331444907,1720419038386,-500.0,0.00057534,120]
[331444908,1720419038396,-500.0,0.00057534,120]
[331444909,1720419038405,-500.0,0.00057534,120]
[331444910,1720419038413,-500.0,0.00057534,120]
[331444911,1720419038423,-2000.0,0.00057534,120]
[331444913,1720419038432,-500.0,0.00057534,120]
[331444914,1720419038441,-500.0,0.00057534,120]
[331444916,1720419038452,-500.0,0.00057534,120]
[331444918,1720419038461,-500.0,0.00057534,120]
[331444920,1720419038471,-500.0,0.00057534,120]
[331444922,1720419038480,-503.98,0.00057534,120]
[331444924,1720419038490,-511.39,0.00057534,120]
[331444926,1720419038499,-1119.23,0.00057534,120]
[331444928,1720419038509,-500.0,0.00057534,120]
[331444930,1720419038518,-500.0,0.00057534,120]
[331444932,1720419038527,-500.0,0.00057534,10]
[331444934,1720419038537,-502.17179336,0.00057534,2]
[331444935,1720419038546,-500.0,0.00057534,120]
[331444936,1720419038555,-500.0,0.00057534,120]
[331444937,1720419038564,-723.62,0.00057534,120]
[331444938,1720419038574,-723.62,0.00057534,120]
[331444939,1720419038584,-723.62,0.00057534,120]
[331444940,1720419038594,-723.62,0.00057534,120]
[331444941,1720419038603,-960.16,0.00057534,120]
[331444942,1720419038612,-500.0,0.00057534,120]
[331444943,1720419038622,-500.0,0.00057534,120]
[331444944,1720419038631,-500.0,0.00057534,120]
[331444945,1720419038640,-500.021093,0.00057534,120]
[331444946,1720419038649,-500.0,0.00057534,120]
[331444947,1720419038659,-500.0,0.00057534,120]
[331444948,1720419038668,-500.0,0.00057534,120]
[331444949,1720419038677,-500.0,0.00057534,120]
[331444950,1720419038687,-517.09287822,0.00057534,120]
[331444951,1720419038696,-500.0,0.00057534,120]
[331444952,1720419038705,-500.0,0.00057534,120]
[331444953,1720419038715,-500.0,0.00057534,120]
[331444954,1720419038725,-500.0,0.00057534,120]
[331444955,1720419038735,-500.0,0.00057534,120]
[331444956,1720419038744,-500.0,0.00057534,120]
[331444957,1720419038754,-500.0,0.00057534,120]
[331444958,1720419038764,-500.0,0.00057534,120]
[331444959,1720419038775,-539.13,0.00057534,120]
[331444960,1720419038785,-510.46,0.00057534,120]
[331444961,1720419038795,-500.0,0.00057534,120]
[331444962,1720419038804,-500.0,0.00057534,120]
[331444963,1720419038815,-500.0,0.00057534,120]
[331444964,1720419038824,-500.0,0.00057534,120]
[331444965,1720419038835,-500.0,0.00057534,120]
[331444966,1720419038845,-500.0,0.00057534,120]
[331444967,1720419038855,-1021.58,0.00057534,120]
[331444968,1720419038864,-500.0,0.00057534,2]
[331444969,1720419038874,-2365.55,0.00057534,120]
[331444970,1720419038883,-500.0,0.00057534,120]
[331444971,1720419038894,-255.26140429,0.00057534,120]
[331444972,1720419038903,-500.0,0.00057534,120]
[331444973,1720419038913,-500.0,0.00057534,120]
[331444974,1720419038924,-500.0,0.00057534,120]
[331444975,1720419038938,-500.0,0.00057534,120]
[331444976,1720419039041,-500.0,0.00057534,120]
[331444977,1720419039051,-558.0,0.00057534,120]
[331444978,1720419039062,-500.0,0.00057534,120]
[331444979,1720419039073,-1327.91,0.00057534,120]
[331444980,1720419039083,-1411.48,0.00057534,120]
[331444981,1720419039094,-500.0,0.00057534,120]
[331444982,1720419039105,-501.55932347,0.00057534,120]
[331444983,1720419039115,-500.0,0.00057534,120]
[331444984,1720419039125,-509.06145503,0.00057534,120]
[331444985,1720419039136,-500.0,0.00057534,120]
[331444986,1720419039147,-797.7,0.00057534,120]
[331444987,1720419039157,-509.14157313,0.00057534,120]
[331444988,1720419039169,-2068.77,0.00057534,120]
[331444989,1720419039193,-500.0,0.00057534,120]
[331444990,1720419039204,-507.83945506,0.00057534,120]
[331444991,1720419039214,-500.0,0.00057534,120]
[331444992,1720419039224,-999.75,0.00057534,120]
[331444993,1720419039234,-923.38,0.00057534,120]
[331444994,1720419039244,-513.9321426,0.00057534,120]
[331444995,1720419039254,-500.0,0.00057534,120]
[331444996,1720419039264,-631.06499971,0.00057534,120]
[331444997,1720419039274,-3062.6,0.00057534,120]
[331444998,1720419039284,-500.0,0.00057534,120]
[331444999,1720419039294,-500.0,0.00057534,120]
[331445000,1720419039304,-500.0,0.00057534,120]
[331445001,1720419039315,-500.0,0.00057534,120]
[331445002,1720419039325,-522.75456289,0.00057534,120]
[331445003,1720419039336,-500.0,0.00057534,120]
[331445004,1720419039347,-500.0,0.00057534,120]
[331445005,1720419039358,-500.0,0.00057534,120]
[331445006,1720419039368,-517.20444976,0.00057534,120]
[331445007,1720419039378,-506.70309239,0.00057534,120]
[331445008,1720419039388,-210.0681247,0.00057534,120]
[331445009,1720419039398,-500.0,0.00057534,120]
[331445010,1720419039408,-12453.75,0.00057534,120]
[331445011,1720419039417,-500.0,0.00057534,120]
[331445012,1720419039427,-1380.46,0.00057534,120]
[331445013,1720419039437,-750.29657691,0.00057534,60]
[331445014,1720419039447,-521.32037622,0.00057534,120]
[331445015,1720419039456,-500.0,0.00057534,120]
[331445016,1720419039466,-510.26779255,0.00057534,120]
[331445017,1720419039476,-529.93098363,0.00057534,120]
[331445019,1720419039485,-500.0,0.00057534,120]
[331445020,1720419039494,-513.58861862,0.00057534,120]
[331445022,1720419039504,-500.0,0.00057534,120]
[331445024,1720419039513,-500.0,0.00057534,120]
[331445026,1720419039523,-500.0,0.00057534,120]
[331445027,1720419039532,-3409.91,0.00057534,120]
[331445028,1720419039542,-3409.91,0.00057534,120]
[331445029,1720419039551,-3409.91,0.00057534,120]
[331445030,1720419039561,-3409.91,0.00057534,120]
[331445031,1720419039570,-500.0,0.00057534,120]
[331445032,1720419039580,-500.0,0.00057534,120]
[331445034,1720419039590,-500.0,0.00057534,120]
[331445036,1720419039600,-500.0,0.00057534,120]
[331445038,1720419039611,-515.02065842,0.00057534,120]
[331445040,1720419039621,-500.0,0.00057534,120]
[331445043,1720419039632,-3552.58,0.00057534,120]
[331445045,1720419039642,-834.68,0.00057534,120]
[331445047,1720419039652,-500.0,0.00057534,120]
[331445049,1720419039662,-500.0,0.00057534,120]
[331445051,1720419039673,-500.0,0.00057534,120]
[331445053,1720419039682,-940.96,0.00057534,120]
[331445055,1720419039692,-500.0,0.00057534,120]
[331445057,1720419039720,-180.71333506,0.00057534,120]
[331445059,1720419039730,-564.60346803,0.00057534,120]
[331445061,1720419039740,-500.0,0.00057534,120]
[331445063,1720419039750,-511.4414693,0.00057534,120]
[331445065,1720419039760,-1000.0,0.00057534,120]
[331445067,1720419039770,-502.66318734,0.00057534,120]
[331445069,1720419039779,-633.28004618,0.00057534,120]
[331445070,1720419039789,-547.11,0.00057534,120]
[331445072,1720419039799,-296.46814856,0.00057534,120]
[331445074,1720419039808,-500.0,0.00057534,120]
[331445076,1720419039819,-500.0,0.00057534,120]
[331445078,1720419039828,-500.0,0.00057534,120]
[331445080,1720419039838,-963.66117308,0.00057534,120]
[331445108,1720419042678,-221.06882692,0.00057534,120]
[331445110,1720419042688,-500.0,0.00057534,120]
[331445112,1720419042697,-151.0,0.0006,120]
[331445114,1720419042706,-1162.63663838,0.00061518,2]
[331445116,1720419042715,-151.0,0.0006178,120]
[331445118,1720419042724,-151.0,0.0006178,7]
[331445120,1720419042734,-500.0,0.00061789,120]
[331445122,1720419042743,-500.0,0.00061789,120]
[331445124,1720419042753,-3000.0,0.000618,120]
[331445126,1720419042762,-157.59667048,0.00062151,120]
[331445128,1720419042771,-500.0,0.00063002,120]
[331445130,1720419042781,-500.0,0.00063002,120]
[331445132,1720419042790,-500.0,0.00063002,120]
[331445134,1720419042800,-1160.532696,0.00063002,120]
[331445136,1720419042809,-1160.532696,0.00063002,120]
[331445138,1720419042817,-9950.20901029,0.00063002,8]
[331445139,1720419042826,-9950.20901029,0.00063003,8]
[331445141,1720419042835,-151.0,0.00063003,120]
[331445144,1720419042844,-151.0,0.00063003,120]
[331445147,1720419042853,-151.0,0.00063003,120]
[331445149,1720419042862,-151.0,0.00063003,120]
[331445150,1720419042871,-154.030342,0.00063012,120]
[331445151,1720419042880,-723.62,0.00063012,120]
[331445152,1720419042890,-299.18686987,0.00063012,120]
[331445154,1720419042899,-500.0,0.00063012,120]
[331445156,1720419042909,-384.32752181,0.00063012,120]
[331445158,1720419042919,-208.32596228,0.00063012,120]
[331445160,1720419042935,-500.0,0.00063012,120]
[331445162,1720419042945,-500.0,0.00063012,120]
[331445164,1720419042955,-266.5420095,0.00063012,120]
[331445166,1720419042967,-485.94194302,0.00063012,120]
[331445168,1720419042977,-500.0,0.00063012,120]
[331445170,1720419042987,-458.63647643,0.00063012,120]
[331445172,1720419042996,-500.0,0.00063012,120]
[331445174,1720419043008,-500.0,0.00063012,120]
[331445176,1720419043018,-500.0,0.00063012,120]
[331445178,1720419043028,-397.52820048,0.00063012,120]
[331445180,1720419043037,-245.57511902,0.00063012,120]
[331445181,1720419043047,-500.0,0.00063012,120]
[331445184,1720419043056,-151.0,0.00063012,120]
[331445187,1720419043065,-500.0,0.00063012,120]
[331445188,1720419043074,-500.0,0.00063012,120]
[331445190,1720419043084,-500.0,0.00063012,120]
[331445191,1720419043093,-199.71038094,0.00063012,120]
[331445193,1720419043102,-228.44730611,0.00063012,120]
[331445195,1720419043111,-500.0,0.00063012,120]
[331445197,1720419043120,-3409.91,0.00063012,120]
[331445198,1720419043129,-151.0,0.00063012,120]
[331445200,1720419043138,-500.0,0.00063013,120]
[331445201,1720419043147,-500.00659492,0.00063013,120]
[331445203,1720419043157,-500.0,0.00063013,120]
[331445205,1720419043166,-500.0,0.00063013,120]
[331445206,1720419043175,-500.0,0.00063013,120]
[331445207,1720419043184,-500.0,0.00063013,120]
[331445208,1720419043193,-2000.0,0.00063013,120]
[331445209,1720419043201,-500.0,0.00063013,120]
[331445210,1720419043211,-503.98,0.00063013,120]
[331445211,1720419043220,-1119.23,0.00063013,120]
[331445212,1720419043229,-500.0,0.00063013,10]
[331445213,1720419043238,-500.0,0.00063013,120]
[331445214,1720419043247,-960.16,0.00063013,120]
[331445215,1720419043256,-500.0,0.00063013,120]
[331445216,1720419043267,-500.0,0.00063013,120]
[331445217,1720419043277,-500.0,0.00063013,120]
[331445218,1720419043286,-500.0,0.00063013,120]
[331445219,1720419043296,-500.0,0.00063013,120]
[331445220,1720419043305,-500.0,0.00063013,120]
[331445221,1720419043315,-500.0,0.00063013,120]
[331445222,1720419043324,-500.0,0.00063013,120]
[331445223,1720419043334,-151.0,0.00063013,120]
[331445224,1720419043343,-500.23890455,0.00063013,120]
[331445225,1720419043352,-539.13,0.00063013,120]
[331445227,1720419043428,-510.46,0.00063013,120]
[331445228,1720419043438,-500.0,0.00063013,120]
[331445230,1720419043447,-500.0,0.00063013,120]
[331445231,1720419043456,-151.0,0.00063013,7]
[331445232,1720419043465,-500.0,0.00063013,120]
[331445233,1720419043474,-418.35718189,0.00063013,120]
[331445234,1720419043483,-500.0,0.00063013,120]
[331445235,1720419043492,-1021.58,0.00063013,120]
[331445236,1720419043502,-505.02103644,0.00063013,2]
[331445237,1720419043511,-151.0,0.00063013,120]
[331445238,1720419043520,-151.0,0.00063013,120]
[331445239,1720419043530,-2365.55,0.00063013,120]
[331445240,1720419043540,-500.0,0.00063013,120]
[331445241,1720419043549,-154.791805,0.00063013,120]
[331445242,1720419043558,-515.366226,0.00063013,120]
[331445243,1720419043567,-515.366226,0.00063013,120]
[331445244,1720419043576,-515.366226,0.00063013,120]
[331445245,1720419043586,-515.366226,0.00063013,120]
[331445246,1720419043595,-500.0,0.00063013,120]
[331445247,1720419043604,-558.0,0.00063013,120]
[331445248,1720419043613,-151.0,0.00063013,120]
[331445249,1720419043623,-151.0,0.00063013,120]
[331445250,1720419043632,-1327.91,0.00063013,120]
[331445251,1720419043641,-1411.48,0.00063013,120]
[331445252,1720419043650,-500.0,0.00063013,120]
[331445253,1720419043659,-500.0,0.00063013,120]
[331445254,1720419043668,-199.992301,0.00063013,120]
[331445255,1720419043677,-500.0,0.00063013,120]
[331445256,1720419043687,-797.7,0.00063013,120]
[331445257,1720419043695,-151.0,0.00063013,120]
[331445258,1720419043704,-1930.82404864,0.00063013,120]
[331445260,1720419043717,-137.94595136,0.00063013,120]
[331445262,1720419043726,-999.75,0.00063013,120]
[331445264,1720419043735,-923.38,0.00063013,120]
[331445265,1720419043745,-500.0,0.00063013,120]
[331445266,1720419043754,-3062.6,0.00063013,120]
[331445267,1720419043763,-500.0,0.00063013,120]
[331445268,1720419043772,-499.76725132,0.00063013,120]
[331445269,1720419043783,-12453.75,0.00063013,120]
[331445270,1720419043792,-500.0,0.00063013,120]
[331445271,1720419043801,-1380.46,0.00063013,120]
[331445272,1720419043811,-500.0,0.00063013,120]
[331445273,1720419043820,-443.92021366,0.00063013,120]
[331445274,1720419043829,-500.0,0.00063013,120]
[331445275,1720419043838,-500.0,0.00063013,120]
[331445276,1720419043847,-500.0,0.00063013,120]
[331445277,1720419043856,-500.0,0.00063013,120]
[331445278,1720419043866,-500.0,0.00063013,120]
[331445279,1720419043875,-3552.58,0.00063013,120]
[331445280,1720419043885,-834.68,0.00063013,120]
[331445281,1720419043895,-500.0,0.00063013,120]
[331445282,1720419043904,-282.34,0.00063013,120]
[331445283,1720419043913,-500.0,0.00063013,120]
[331445284,1720419043926,-940.96,0.00063013,120]
[331445285,1720419043935,-151.0,0.00063013,120]
[331445286,1720419043945,-500.0,0.00063013,120]
[331445287,1720419043954,-1000.0,0.00063013,120]
[331445288,1720419043963,-547.11,0.00063013,120]
[331445289,1720419043974,-500.0,0.00063013,120]
[331445290,1720419043983,-500.0,0.00063013,120]
[331445291,1720419043992,-500.0,0.00063013,120]
[331445292,1720419044003,-1160.532696,0.00063013,120]
[331445293,1720419044013,-1160.532696,0.00063013,120]
[331445295,1720419044021,-1184.73,0.00063013,120]
[331445296,1720419044032,-1160.532696,0.00063013,120]
[331445297,1720419044041,-1160.532696,0.00063013,120]
[331445298,1720419044051,-1162.63663838,0.00065602,2]
[331445299,1720419044060,-153.0,0.00066749,120]
[331445300,1720419044069,-252.678606,0.00067269,120]
[331445301,1720419044079,-3000.0,0.00067279,120]
[331445302,1720419044088,-151.0,0.00067279,120]
[331445303,1720419044098,-500.0,0.00068382,120]
[331445304,1720419044107,-500.0,0.00068382,120]
[331445305,1720419044117,-19900.4180206,0.00068383,9]
[331445306,1720419044127,-723.62,0.00068392,120]
[331445307,1720419044137,-3409.91,0.00068392,120]
[331445308,1720419044147,-160.63587319,0.00068393,61]
[331445309,1720419044156,-40562.99666149,0.00068393,120]
[331445310,1720419044304,-141.34438866,0.00057534,120]
[331445324,1720419525866,42136.0,0.00038878,35]
[331445325,1720419559245,170.023594,0.00021096,2]
[331445327,1720419793549,518.93724581,0.0002557,2]
[331445328,1720419799345,883.46515125,0.0002557,2]
[331445329,1720419932588,-1421.88225174,0.00030993,30]
[331445335,1720420031123,-369.38176865,0.00034634,2]
[331445336,1720420034247,-1361.65591986,0.00034634,2]
[331445337,1720420038624,-3750.66253162,0.00034634,2]
[331445338,1720420062520,158.184512,0.00021096,2]
[331445346,1720420118934,5503.49557759,0.0002557,2]
[331445347,1720420138716,822.9578253,0.00021096,2]
[331445348,1720420160322,-1662.013679,0.00037259,4]
[331445349,1720420160342,-1662.013679,0.00037523,4]
[331445350,1720420160361,-158.184512,0.00037652,2]
[331445351,1720420160383,-400.10418241,0.00039393,2]
[331445352,1720420160402,-151.0,0.0004,120]
[331445353,1720420160421,-308.96497042,0.0004,4]
[331445354,1720420160439,-500.0,0.0004,30]
[331445355,1720420160460,-404.66552782,0.00040229,4]
[331445356,1720420160481,-867.4250707,0.000416,2]
[331445357,1720420160499,-243.20391872,0.00041941,2]
[331445358,1720420160518,-189.12210345,0.0004198,4]
[331445359,1720420160538,-473.55680209,0.00043287,4]
[331445360,1720420160557,-194.7348405,0.00043966,2]
[331445361,1720420160575,-4600.40853576,0.00045,120]
[331445362,1720420160682,-151.0,0.00052493,120]
[331445363,1720420164931,4184.60217813,0.0002557,2]
[331445364,1720420164953,1318.89339946,0.0002557,2]
[331445366,1720420197128,383.50586823,0.00035,4]
[331445367,1720420197151,1004.38116927,0.00035,4]
[331445368,1720420212225,166.46498376,0.0002557,2]
[331445596,1720420238649,-158.184512,0.00054207,2]
[331445597,1720420238659,-378.58484553,0.00057434,2]
[331445598,1720420238669,-178.57479147,0.00057434,28]
[331445599,1720420238678,-8104.65749707,0.00057524,7]
[331445600,1720420238689,-397.0,0.00057524,2]
[331445601,1720420238699,-11317.39,0.00057524,3]
[331445602,1720420238709,-516.30298788,0.00057533,7]
[331445603,1720420238718,-315.53229034,0.00057533,120]
[331445604,1720420238728,-1177.6723061,0.00057534,20]
[331445605,1720420238738,-500.0,0.00057534,2]
[331445606,1720420238747,-500.0,0.00057534,120]
[331445607,1720420238757,-500.0,0.00057534,120]
[331445608,1720420238766,-500.0,0.00057534,120]
[331445609,1720420238776,-513.33974616,0.00057534,120]
[331445610,1720420238785,-500.0,0.00057534,120]
[331445611,1720420238795,-500.0,0.00057534,120]
[331445612,1720420238804,-500.0,0.00057534,120]
[331445613,1720420238814,-500.0,0.00057534,120]
[331445614,1720420238823,-500.0,0.00057534,120]
[331445615,1720420238832,-514.23803187,0.00057534,120]
[331445616,1720420238842,-500.0,0.00057534,120]
[331445617,1720420238851,-500.0,0.00057534,120]
[331445618,1720420238861,-515.85036784,0.00057534,120]
[331445619,1720420238870,-516.01750948,0.00057534,120]
[331445620,1720420238880,-500.0,0.00057534,120]
[331445621,1720420238889,-500.0,0.00057534,120]
[331445622,1720420238898,-500.0,0.00057534,120]
[331445623,1720420238907,-500.0,0.00057534,120]
[331445624,1720420238917,-500.0,0.00057534,120]
[331445625,1720420238926,-500.0,0.00057534,120]
[331445626,1720420238936,-1982.57,0.00057534,120]
[331445627,1720420238945,-500.0,0.00057534,120]
[331445628,1720420238955,-509.06145503,0.00057534,120]
[331445629,1720420238964,-509.14157313,0.00057534,120]
[331445630,1720420238974,-500.0,0.00057534,120]
[331445631,1720420238984,-507.83945506,0.00057534,120]
[331445632,1720420238996,-500.0,0.00057534,120]
[331445633,1720420239010,-500.0,0.00057534,120]
[331445634,1720420239025,-750.29657691,0.00057534,60]
[331445635,1720420239041,-500.0,0.00057534,120]
[331445636,1720420239054,-572.86,0.00057534,120]
[331445637,1720420239066,-500.0,0.00057534,120]
[331445638,1720420239080,-500.0,0.00057534,120]
[331445639,1720420239092,-497.751166,0.00057534,120]
[331445640,1720420239106,-631.06499971,0.00057534,120]
[331445641,1720420239119,-500.0,0.00057534,120]
[331445642,1720420239133,-500.0,0.00057534,120]
[331445643,1720420239146,-500.0,0.00057534,120]
[331445644,1720420239158,-500.021093,0.00057534,120]
[331445645,1720420239172,-501.55932347,0.00057534,120]
[331445646,1720420239187,-500.0,0.00057534,120]
[331445647,1720420239202,-500.0,0.00057534,120]
[331445648,1720420239216,-500.0,0.00057534,120]
[331445649,1720420239228,-517.20444976,0.00057534,120]
[331445650,1720420239241,-506.70309239,0.00057534,120]
[331445651,1720420239254,-517.09287822,0.00057534,120]
[331445652,1720420239267,-500.0,0.00057534,120]
[331445653,1720420239280,-210.0681247,0.00057534,120]
[331445654,1720420239293,-500.0,0.00057534,120]
[331445655,1720420239306,-510.26779255,0.00057534,120]
[331445656,1720420239318,-513.58861862,0.00057534,120]
[331445657,1720420239332,-513.9321426,0.00057534,120]
[331445658,1720420239343,-500.0,0.00057534,120]
[331445659,1720420239356,-500.0,0.00057534,120]
[331445660,1720420239369,-500.0,0.00057534,120]
[331445661,1720420239383,-500.0,0.00057534,120]
[331445662,1720420239397,-500.0,0.00057534,120]
[331445663,1720420239410,-500.0,0.00057534,120]
[331445664,1720420239424,-522.75456289,0.00057534,120]
[331445665,1720420239439,-500.0,0.00057534,120]
[331445666,1720420239453,-521.32037622,0.00057534,120]
[331445667,1720420239467,-529.93098363,0.00057534,120]
[331445668,1720420239480,-500.0,0.00057534,120]
[331445669,1720420239493,-500.0,0.00057534,120]
[331445670,1720420239505,-515.02065842,0.00057534,120]
[331445671,1720420239517,-502.66318734,0.00057534,120]
[331445672,1720420239528,-979.01,0.00057534,120]
[331445673,1720420239538,-538.97,0.00057534,120]
[331445674,1720420239549,-500.0,0.00057534,2]
[331445675,1720420239562,-500.0,0.00057534,120]
[331445676,1720420239575,-534.75,0.00057534,120]
[331445677,1720420239588,-500.0,0.00057534,120]
[331445678,1720420239601,-1352.67,0.00057534,120]
[331445679,1720420239611,-1272.59,0.00057534,120]
[331445680,1720420239622,-500.0,0.00057534,120]
[331445681,1720420239633,-500.0,0.00057534,120]
[331445682,1720420239644,-500.0,0.00057534,120]
[331445683,1720420239656,-764.46,0.00057534,120]
[331445684,1720420239667,-500.0,0.00057534,120]
[331445685,1720420239678,-500.0,0.00057534,120]
[331445686,1720420239693,-500.0,0.00057534,120]
[331445687,1720420239704,-500.0,0.00057534,120]
[331445688,1720420239716,-3158.87,0.00057534,120]
[331445689,1720420239728,-884.91,0.00057534,120]
[331445690,1720420239739,-500.0,0.00057534,120]
[331445691,1720420239751,-958.09,0.00057534,120]
[331445692,1720420239764,-500.0,0.00057534,120]
[331445693,1720420239776,-2000.0,0.00057534,120]
[331445694,1720420239787,-500.0,0.00057534,120]
[331445695,1720420239799,-500.0,0.00057534,120]
[331445696,1720420239811,-500.0,0.00057534,120]
[331445697,1720420239822,-11934.85,0.00057534,120]
[331445698,1720420239834,-3125.75,0.00057534,120]
[331445699,1720420239845,-1322.94,0.00057534,120]
[331445700,1720420239857,-500.0,0.00057534,120]
[331445701,1720420239868,-1339.05,0.00057534,120]
[331445702,1720420239879,-500.0,0.00057534,120]
[331445703,1720420239891,-180.71333506,0.00057534,120]
[331445704,1720420239903,-500.0,0.00057534,120]
[331445705,1720420239915,-500.0,0.00057534,120]
[331445706,1720420239927,-500.0,0.00057534,120]
[331445707,1720420239945,-500.0,0.00057534,120]
[331445708,1720420239957,-500.0,0.00057534,120]
[331445709,1720420239969,-737.98,0.00057534,120]
[331445710,1720420239980,-500.0,0.00057534,120]
[331445711,1720420239993,-3404.55,0.00057534,120]
[331445712,1720420240005,-500.0,0.00057534,120]
[331445719,1720420240097,-511.4414693,0.00057534,120]
[331445722,1720420240138,-1072.59,0.00057534,120]
[331445724,1720420240149,-500.0,0.00057534,120]
[331445726,1720420240159,-564.60346803,0.00057534,120]
[331445728,1720420240168,-633.28004618,0.00057534,120]
[331445729,1720420240178,-1126.16,0.00057534,120]
[331445730,1720420240191,-500.0,0.00057534,10]
[331445731,1720420240201,-2266.98,0.00057534,120]
[331445732,1720420240212,-1000.0,0.00057534,120]
[331445733,1720420240222,-173.44407233,0.00057534,120]
[331445734,1720420240232,-296.46814856,0.00057534,120]
[331445735,1720420240243,-799.9,0.00057534,120]
[331445736,1720420240253,-524.32,0.00057534,120]
[331445737,1720420240262,-500.0,0.00057534,120]
[331445738,1720420240272,-920.15,0.00057534,120]
[331445739,1720420240282,-500.0,0.00057534,120]
[331445740,1720420240292,-511.39,0.00057534,120]
[331445741,1720420240302,-255.26140429,0.00057534,120]
[331445742,1720420240312,-500.0,0.00057534,120]